[Event "CRO Team Cup 2019"]
[Site "Losinj"]
[Date "2019.05.16"]
[Round "3.13"]
[White "Janzelj, Tim"]
[Black "Bender, Ivan"]
[Result "1/2-1/2"]
[ECO "E39"]
[WhiteElo "2380"]
[BlackElo "2205"]
[Annotator "NA"]
[PlyCount "111"]
[EventDate "2019.05.15"]
[EventType "team-tourn"]
[EventCountry "CRO"]
[SourceTitle "playchess.com"]
[Source "ChessBase"]
[SourceQuality "1"]
[TimeControl "40/5400+30:1800+30"]

{[%evp 12,107,-3,32767,23,9,6,32767,32767,27,32767,32767,32767,29,36,20,62,32767,63,52,75,75,78,32767,32767,106,100,98,151,135,137,149,154,32767,152,145,151,32767,32767,173,163,186,180,166,235,153,32767,158,165,148,168,154,32767,155,161,127,154,32767,83,62,71,0,15,3,32767,0,29975,32767,8,32767,32767,32767,32767,32767,32767,32767,32767,32767,32767,32767,32767,6,0,0,0,-23,-9,-38,-13,-8,-12,-13,-12,32767,-8,0,-8,-8]} 1. d4 {[%emt 0:00:30]} Nf6 {[%emt 0:02:30]} 2. c4 {[%emt 0:00:30]} e6 {[%emt 0:00:30]} 3. Nc3 {[%emt 0:00:30]} Bb4 {[%emt 0:00:00]} 4. Qc2 {[%emt 0:00:00]} O-O {[%emt 0:02:00]} 5. Nf3 {[%emt 0:00:00]} c5 {[%emt 0:06:30]} 6. dxc5 {[%emt 0:00:30]} Na6 {[%emt 0:03:30]} 7. g3 {[%emt 0:00:30]} Nxc5 {[%emt 0:02:30]} 8. Bg2 {[%emt 0:00:00]} b6 {[%emt 0:05:30]} 9. O-O {[%emt 0:08:00]} Bxc3 {[%emt 0:06:30]} 10. Qxc3 {[%emt 0:00:30]} Bb7 {[%emt 0:08:30]} 11. b3 {[%emt 0:06:30] E39: Nimzo-Indian: Classical: 4...c5 5 dxc5 0-0} Qe7 {[%emt 0:09:30]} 12. Bb2 {[%emt 0:07:30]} d6 {[%emt 0:05:30]} 13. Rad1 $146 {[%emt 0:01:30]} ({Predecessor:} 13. Rac1 Rac8 14. Rfd1 e5 15. Nh4 Bxg2 16. Nxg2 Nfe4 17. Qc2 f5 18. b4 Nd7 {1-0 (54) Nihal,S (2340)-Tari,A (2584) chess.com INT 2017}) 13... e5 {[%emt 0:02:30]} 14. Nh4 {[%emt 0:04:30]} Bxg2 {[%emt 0:00:30]} 15. Nxg2 {[%emt 0:00:00]} Qe6 {[%emt 0:03:30]} 16. f3 {[%emt 0:06:00]} Rab8 {[%emt 0:05:30]} 17. e4 {[%emt 0:01:30]} b5 {[%emt 0:03:30]} 18. cxb5 {[%emt 0:10:30]} Rxb5 {[%emt 0:00:00]} 19. Ne3 {[%emt 0:00:30]} Rfb8 {[%emt 0:07:00]} 20. Nc4 {[%emt 0:09:30]} Ne8 {[%emt 0:02:30]} 21. Ba3 {[%emt 0:06:30]} Nb7 {[%emt 0:08:40]} 22. Qe3 {[%emt 0:08:30]} Ra8 {[%emt 0:06:04]} 23. Rd2 {[%emt 0:01:30]} a5 {[%emt 0:00:26]} 24. Rfd1 {[%emt 0:12:13]} a4 {[%emt 0:03:49]} 25. Nb6 {[%emt 0:00:41]} Rxb6 {[%emt 0:00:03]} 26. Qxb6 {[%emt 0:00:06]} axb3 {[%emt 0:00:06]} 27. Bb2 {[%emt 0:06:26]} Na5 {[%emt 0:03:17]} (27... Nc5 $142) 28. axb3 {[%emt 0:00:15]} Qxb3 {[%emt 0:01:36]} 29. Qxb3 {[%emt 0:00:44]} Nxb3 {[%emt 0:00:01]} 30. Rd5 {[%emt 0:00:09]} f6 {[%emt 0:00:22]} 31. Rb5 {[%emt 0:00:46]} Nc5 {[%emt 0:00:11]} 32. Kf2 {[%emt 0:04:41]} Kf7 {[%emt 0:01:16]} 33. Ke3 {[%emt 0:00:18]} Ke6 {[%emt 0:00:57]} 34. f4 {[%emt 0:00:22]} Ra4 {[%emt 0:00:25]} 35. f5+ {[%emt 0:04:13]} Ke7 {[%emt 0:00:01]} 36. Kf3 {[%emt 0:00:39]} (36. Ra1 $1 $14 Rxe4+ 37. Kf3) 36... Nxe4 {[%emt 0:00:35]} 37. Rb7+ {[%emt 0:00:07]} Kf8 {[%emt 0:00:59]} 38. Ra1 {[%emt 0:00:19]} Rxa1 $11 {[%emt 0:01:51]} (38... d5 $2 {[%emt 0:01:51][%mdl 8192]}) 39. Bxa1 {[%emt 0:00:30]} d5 {[%emt 0:00:30]} 40. Bb2 {[%emt 0:00:30]} g6 {[%emt 0:00:30]} 41. Ba3+ {[%emt 0:30:30]} Kg8 {[%emt 0:30:30]} 42. fxg6 {[%emt 0:00:30]} hxg6 {[%emt 0:00:30]} 43. Rd7 {[%emt 0:00:30]} Ng5+ {[%emt 0:00:30]} 44. Kg2 {[%emt 0:00:30]} d4 {[%emt 0:00:30]} 45. h4 {[%emt 0:00:00]} Ne6 {[%emt 0:00:00]} 46. g4 {[%emt 0:00:00]} f5 {[%emt 0:00:00]} 47. Bc1 {[%emt 0:00:00]} fxg4 {[%emt 0:00:00]} 48. Kg3 {[%emt 0:00:00]} Nf6 {[%emt 0:00:00]} 49. Re7 {[%emt 0:00:00]} Nc5 {[%emt 0:00:00]} 50. Rxe5 {[%emt 0:00:00]} Nd3 {[%emt 0:00:00]} 51. Re6 {[%emt 0:00:00]} Kf7 {[%emt 0:01:47]} 52. Rc6 {[%emt 0:00:06]} Ne4+ {[%emt 0:00:06]} 53. Kxg4 {[%emt 0:02:14]} Ne5+ {[%emt 0:00:50] Double Attack} 54. Kf4 $11 {[%emt 0:00:02] Double Attack} Nxc6 {[%emt 0:00:00]} 55. Kxe4 {[%emt 0:00:01]} Ke6 {[%emt 0:01:26]} 56. Bb2 {[%emt 0:00:06]} 1/2-1/2

[Event "CRO Team Cup 2019"]
[Site "Losinj"]
[Date "2019.05.16"]
[Round "3.14"]
[White "Separovic, Tomislav"]
[Black "Ostovic, Matija"]
[Result "0-1"]
[ECO "D37"]
[WhiteElo "2141"]
[BlackElo "2391"]
[Annotator "NA RC"]
[PlyCount "104"]
[EventDate "2019.05.15"]
[EventType "team-tourn"]
[EventCountry "CRO"]
[SourceTitle "playchess.com"]
[Source "ChessBase"]
[SourceQuality "1"]
[TimeControl "40/5400+30:1800+30"]

{[%evp 16,102,0,-22,-14,-38,32767,32767,32767,32767,0,-6,32767,32767,32767,32767,32767,3,32767,0,0,0,0,-33,-19,32767,-77,-79,-76,32767,-102,32767,-89,-106,32767,32767,32767,32767,-86,-74,-88,-104,-102,-106,-100,-109,32767,-95,-87,-103,-106,-147,32767,32767,32767,-211,-168,-178,-206,32767,32767,32767,-170,-193,-156,-215,-201,-242,-201,-356,-417,-391,-332,32767,-277,-421,-452,-464,32767,-463,-479,-454,-471,-439,32767,-800,-457,-1172,-1324]} 1. d4 {[%emt 0:00:30]} Nf6 {[%emt 0:01:30]} 2. c4 {[%emt 0:00:00]} e6 {[%emt 0:00:00]} 3. Nf3 {[%emt 0:00:00]} d5 {[%emt 0:00:00]} 4. e3 {[%emt 0:01:30]} Be7 {[%emt 0:00:30]} 5. Nc3 {[%emt 0:00:30]} O-O {[%emt 0:00:30]} 6. Bd3 {[%emt 0:00:30]} dxc4 {[%emt 0:05:30]} 7. Bxc4 {[%emt 0:00:00]} c5 {[%emt 0:02:30]} 8. O-O {[%emt 0:01:00] D37: Queen's Gambit Declined: 5 Bf4} cxd4 {[%emt 0:02:30]} 9. Nxd4 {[%emt 0:03:30]} (9. exd4 a6 10. a3 b5 11. Ba2 Bb7 12. Re1 Nbd7 13. Bg5 Nb6 14. Qd3 Nbd5 15. Rad1 Rc8 16. Nxd5 Bxd5 17. Bb1 g6 18. Ne5 Rc7 19. h4 Nh5 {½-½ (62) Salem,A (2660)-Fridman,D (2633) St Petersburg 2018}) 9... a6 {[%emt 0:02:30]} 10. a3 {[%emt 0:04:30]} b5 {[%emt 0:01:30]} 11. Be2 {[%emt 0:00:30]} e5 {[%emt 0:02:30]} 12. Nf3 {[%emt 0:02:30]} Qc7 $146 {[%emt 0:01:30]} ({Predecessor:} 12... e4 13. Nd2 {0-1 (31) De Lira,C-Silva,I (1790) Brazil 2003}) 13. Bd2 {[%emt 0:11:30]} e4 {[%emt 0:05:30]} 14. Nd4 {[%emt 0:00:30]} Qe5 {[%emt 0:04:30]} 15. f4 {[%emt 0:07:30]} exf3 {[%emt 0:00:30]} 16. Nxf3 {[%emt 0:01:30]} Qe6 {[%emt 0:02:30]} 17. Ng5 {[%emt 0:04:30]} Qe5 {[%emt 0:01:30]} 18. Nf3 {[%emt 0:00:30]} Qd6 {[%emt 0:03:30]} 19. Qc2 {[%emt 0:01:30]} Bb7 {[%emt 0:02:30]} 20. Ng5 {[%emt 0:03:30]} Nbd7 {[%emt 0:00:30]} 21. Bf3 {[%emt 0:00:30]} Bxf3 {[%emt 0:02:30]} 22. Rxf3 {[%emt 0:02:30]} h6 {[%emt 0:01:30]} 23. Nge4 {[%emt 0:02:30]} Nxe4 {[%emt 0:00:00]} 24. Nxe4 {[%emt 0:00:00]} Qe6 {[%emt 0:03:00]} 25. Bc3 {[%emt 0:08:00]} Ne5 {[%emt 0:03:30]} 26. Bxe5 {[%emt 0:06:30]} Qxe5 {[%emt 0:00:30]} 27. Rc1 {[%emt 0:04:30]} Qe6 {[%emt 0:06:30]} 28. Nc3 {[%emt 0:05:30]} Rac8 {[%emt 0:01:30]} 29. Qf5 {[%emt 0:01:30]} Qxf5 {[%emt 0:05:30]} 30. Rxf5 {[%emt 0:00:00]} Bf6 {[%emt 0:00:30]} 31. Rd5 {[%emt 0:02:00]} Rc6 {[%emt 0:03:30]} 32. Kf2 {[%emt 0:03:30]} Rfc8 {[%emt 0:00:30]} 33. Rd3 {[%emt 0:00:30]} a5 {[%emt 0:01:30]} 34. Rb1 {[%emt 0:00:30]} Bxc3 {[%emt 0:03:30]} 35. Rxc3 {[%emt 0:00:00]} Rxc3 {[%emt 0:01:30]} 36. bxc3 {[%emt 0:00:00]} Rxc3 {[%emt 0:00:30]} 37. Rxb5 {[%emt 0:00:30]} Rxa3 {[%emt 0:00:30]} 38. Rb8+ {[%emt 0:02:30]} Kh7 {[%emt 0:00:30]} 39. Ra8 {[%emt 0:00:30]} Kg6 {[%emt 0:01:30]} 40. Ra7 {[%emt 0:00:30]} a4 {[%emt 0:01:30]} 41. Ra5 {[%emt 0:30:30]} Ra1 {[%emt 0:35:30]} 42. h3 {[%emt 0:01:30]} (42. Ra6+ $142 Kf5 43. Ra7) 42... a3 {[%emt 0:05:38]} 43. Kg3 {[%emt 0:00:30]} Kf6 {[%emt 0:01:21]} 44. Kf3 {[%emt 0:00:30]} Ke6 {[%emt 0:02:13]} 45. Kf2 {[%emt 0:01:30]} (45. Ke4 {was forced.}) 45... g6 {[%emt 0:09:02]} 46. Kg3 {[%emt 0:00:30]} h5 {[%emt 0:01:08]} 47. h4 {[%emt 0:00:30]} f6 {[%emt 0:00:39]} 48. Kf2 {[%emt 0:00:30]} Kd6 {[%emt 0:02:14]} 49. Kg3 {[%emt 0:00:30]} Kc6 {[%emt 0:01:11]} 50. Ra6+ {[%emt 0:00:30]} (50. Kf2 $142) 50... Kb5 {[%emt 0:00:25]} 51. Rxf6 $19 {[%emt 0:02:12]} Re1 {[%emt 0:01:05]} 52. Kf2 {[%emt 0:02:33]} a2 {[%emt 0:00:09]} 0-1

[Event "CRO Team Cup 2019"]
[Site "Losinj"]
[Date "2019.05.16"]
[Round "3.16"]
[White "Ivankovic, Ivo"]
[Black "Boric, Muhamed"]
[Result "0-1"]
[ECO "B14"]
[WhiteElo "2081"]
[BlackElo "2342"]
[Annotator "ChessBase"]
[PlyCount "88"]
[EventDate "2019.05.15"]
[EventType "team-tourn"]
[EventCountry "CRO"]
[SourceTitle "playchess.com"]
[Source "ChessBase"]
[SourceQuality "1"]
[TimeControl "40/5400+30:1800+30"]

1. c4 {[%emt 0:04:30]} c6 {[%emt 0:02:30]} 2. e4 {[%emt 0:00:00]} d5 {[%emt 0:00:30]} 3. exd5 {[%emt 0:00:00]} cxd5 {[%emt 0:00:00]} 4. d4 {[%emt 0:00:30]} Nf6 {[%emt 0:00:00]} 5. Nc3 {[%emt 0:00:00]} g6 {[%emt 0:00:30]} 6. Nf3 {[%emt 0:03:00]} Bg7 {[%emt 0:00:00]} 7. h3 {[%emt 0:06:30]} O-O {[%emt 0:01:00]} 8. Be3 {[%emt 0:00:30]} Nc6 {[%emt 0:01:30]} 9. Qd2 {[%emt 0:03:30]} Ne4 {[%emt 0:06:30]} 10. Nxe4 {[%emt 0:06:30]} dxe4 {[%emt 0:00:30]} 11. Ng5 {[%emt 0:00:30]} Bxd4 {[%emt 0:05:30]} 12. Bxd4 {[%emt 0:02:30]} Qxd4 {[%emt 0:01:30]} 13. Qxd4 {[%emt 0:01:30]} Nxd4 {[%emt 0:00:30]} 14. O-O-O {[%emt 0:00:30]} Rd8 {[%emt 0:06:30]} 15. Nxe4 {[%emt 0:00:30]} Bf5 {[%emt 0:00:30]} 16. Nc3 {[%emt 0:03:30]} h5 {[%emt 0:10:30]} 17. b3 {[%emt 0:08:30]} Rac8 {[%emt 0:04:30]} 18. Kb2 {[%emt 0:05:30]} Ne6 {[%emt 0:04:30]} 19. Rxd8+ {[%emt 0:04:30]} Rxd8 {[%emt 0:00:30]} 20. Nd5 {[%emt 0:00:30]} Kf8 {[%emt 0:00:30]} 21. f3 {[%emt 0:07:30]} h4 {[%emt 0:03:30]} 22. Be2 {[%emt 0:03:30]} Nc7 {[%emt 0:00:30]} 23. Rd1 {[%emt 0:01:30]} Nxd5 {[%emt 0:00:30]} 24. Rxd5 {[%emt 0:00:00]} Rxd5 {[%emt 0:00:30]} 25. cxd5 {[%emt 0:00:00]} Ke8 {[%emt 0:00:00]} 26. Kc3 {[%emt 0:02:30]} Kd7 {[%emt 0:00:00]} 27. Kd4 {[%emt 0:00:30]} Kd6 {[%emt 0:00:30]} 28. b4 {[%emt 0:05:30]} Bb1 {[%emt 0:04:30]} 29. Bc4 {[%emt 0:00:30]} Bc2 {[%emt 0:04:30]} 30. f4 {[%emt 0:01:30]} f5 {[%emt 0:00:30]} 31. Be2 {[%emt 0:02:30]} Be4 {[%emt 0:01:30]} 32. Bf3 {[%emt 0:01:30]} Bb1 {[%emt 0:00:30]} 33. a3 {[%emt 0:03:30]} Ba2 {[%emt 0:00:00]} 34. a4 {[%emt 0:02:30]} b6 {[%emt 0:01:00]} 35. a5 {[%emt 0:01:30]} bxa5 {[%emt 0:00:30]} 36. bxa5 {[%emt 0:00:30]} Bb3 {[%emt 0:00:30]} 37. Be2 {[%emt 0:13:29]} Bxd5 {[%emt 0:00:30]} 38. Bf1 {[%emt 0:00:07]} Bb7 {[%emt 0:04:30]} 39. Ke3 {[%emt 0:00:31]} e5 {[%emt 0:00:00]} 40. fxe5+ {[%emt 0:01:01]} Kxe5 {[%emt 0:00:00]} 41. Kf2 {[%emt 0:30:30]} Kf4 {[%emt 0:31:30]} 42. Bb5 {[%emt 0:01:12]} g5 {[%emt 0:00:00]} 43. Bd7 {[%emt 0:00:34]} g4 {[%emt 0:00:00]} 44. hxg4 {[%emt 0:00:00]} fxg4 {[%emt 0:00:00]} 0-1

[Event "CRO Team Cup 2019"]
[Site "Losinj"]
[Date "2019.05.16"]
[Round "3.18"]
[White "Tica, Sven"]
[Black "Plenca, Julijan"]
[Result "0-1"]
[ECO "A81"]
[WhiteElo "2417"]
[BlackElo "2411"]
[Annotator "RC"]
[PlyCount "74"]
[EventDate "2019.05.15"]
[EventType "team-tourn"]
[EventCountry "CRO"]
[SourceTitle "playchess.com"]
[Source "ChessBase"]
[SourceQuality "1"]
[TimeControl "40/5400+30:1800+30"]

1. Nf3 {[%emt 0:00:30]} f5 {[%emt 0:01:30]} 2. d4 {[%emt 0:00:30]} Nf6 {[%emt 0:00:30]} 3. g3 {[%emt 0:00:30]} g6 {[%emt 0:00:00]} 4. Bg2 {[%emt 0:00:00]} Bg7 {[%emt 0:00:00]} 5. O-O {[%emt 0:00:00]} O-O {[%emt 0:00:30]} 6. b3 {[%emt 0:00:30]} c6 {[%emt 0:08:30]} 7. c4 {[%emt 0:01:30]} Ne4 {[%emt 0:02:30]} 8. Bb2 {[%emt 0:01:30]} a5 {[%emt 0:00:30]} 9. Nc3 {[%emt 0:03:30]} d5 {[%emt 0:02:30]} 10. e3 {[%emt 0:09:30]} b6 {[%emt 0:04:30]} 11. Ne2 {[%emt 0:05:30]} a4 {[%emt 0:03:30]} 12. Qc1 {[%emt 0:04:30]} Na6 {[%emt 0:06:30]} 13. Nf4 {[%emt 0:02:30]} e6 {[%emt 0:12:30]} 14. Nd3 {[%emt 0:04:30]} Rf7 {[%emt 0:04:30]} 15. Nfe5 {[%emt 0:12:30]} Rc7 {[%emt 0:00:30]} 16. f3 {[%emt 0:00:00]} Nf6 {[%emt 0:00:30]} 17. Qd2 {[%emt 0:02:00]} c5 {[%emt 0:02:30]} 18. dxc5 {[%emt 0:02:30]} Nxc5 {[%emt 0:00:30]} 19. Nxc5 {[%emt 0:02:30]} bxc5 {[%emt 0:00:30]} 20. Rfd1 {[%emt 0:03:30]} Qe8 {[%emt 0:01:30]} 21. Qc2 {[%emt 0:02:30]} Bb7 {[%emt 0:02:30]} 22. Nd3 {[%emt 0:05:30]} dxc4 {[%emt 0:05:30]} 23. Qxc4 {[%emt 0:03:30]} g5 {[%emt 0:06:30]} 24. Be5 {[%emt 0:02:30]} Ba6 {[%emt 0:01:30]} 25. Qc1 {[%emt 0:02:30]} Rcc8 {[%emt 0:00:30]} 26. f4 {[%emt 0:05:30]} c4 {[%emt 0:02:30]} 27. bxc4 {[%emt 0:03:30]} Rxc4 {[%emt 0:01:30]} 28. Qb2 {[%emt 0:00:30]} a3 {[%emt 0:01:30]} 29. Qxa3 {[%emt 0:01:25]} Bf8 {[%emt 0:01:30]} 30. Qb3 {[%emt 0:03:09]} Ng4 {[%emt 0:03:30]} 31. Bxa8 {[%emt 0:08:55]} Qxa8 {[%emt 0:01:30]} 32. Qb6 {[%emt 0:00:45]} Bc8 {[%emt 0:00:30]} 33. Rac1 {[%emt 0:03:15]} Qf3 {[%emt 0:00:30]} 34. Rd2 {[%emt 0:03:53]} Rxc1+ {[%emt 0:02:30]} 35. Nxc1 {[%emt 0:00:30]} Nxe3 {[%emt 0:00:30]} 36. Qb5 {[%emt 0:00:30]} Bb7 {[%emt 0:00:30]} 37. Bd4 {[%emt 0:00:30]} Ng4 {[%emt 0:00:30]} 0-1

[Event "CRO Team Cup 2019"]
[Site "Losinj"]
[Date "2019.05.16"]
[Round "3.20"]
[White "Petrov, Jole"]
[Black "Cotic, Borna"]
[Result "1-0"]
[ECO "C01"]
[WhiteElo "2406"]
[BlackElo "2103"]
[Annotator "RC"]
[PlyCount "57"]
[EventDate "2019.05.15"]
[EventType "team-tourn"]
[EventCountry "CRO"]
[SourceTitle "playchess.com"]
[Source "ChessBase"]
[SourceQuality "1"]
[TimeControl "40/5400+30:1800+30"]

1. c4 {[%emt 0:02:30]} Nf6 {[%emt 0:00:30]} 2. Nc3 {[%emt 0:00:30]} e6 {[%emt 0:00:00]} 3. e4 {[%emt 0:00:30]} d5 {[%emt 0:01:00]} 4. exd5 {[%emt 0:04:30]} exd5 {[%emt 0:00:00]} 5. cxd5 {[%emt 0:00:30]} Nxd5 {[%emt 0:01:00]} 6. d4 {[%emt 0:00:30]} Be7 {[%emt 0:00:30]} 7. Nf3 {[%emt 0:00:00]} O-O {[%emt 0:00:30]} 8. Bd3 {[%emt 0:00:00]} Bg4 {[%emt 0:07:30]} 9. h3 {[%emt 0:06:30]} Nxc3 {[%emt 0:04:30]} 10. bxc3 {[%emt 0:00:30]} Bh5 {[%emt 0:01:30]} 11. Qc2 {[%emt 0:04:30]} Bg6 {[%emt 0:02:30]} 12. Bxg6 {[%emt 0:01:30]} hxg6 {[%emt 0:00:30]} 13. O-O {[%emt 0:00:00]} c5 {[%emt 0:03:30]} 14. Rb1 {[%emt 0:11:00]} Qc7 {[%emt 0:08:30]} 15. Qe4 {[%emt 0:03:30]} Nc6 {[%emt 0:13:30]} 16. Bf4 {[%emt 0:01:30]} Qd7 {[%emt 0:02:30]} 17. Ne5 {[%emt 0:12:30]} Nxe5 {[%emt 0:12:30]} 18. Rxb7 {[%emt 0:01:30]} Qc6 {[%emt 0:00:30]} 19. Qxc6 {[%emt 0:00:30]} Nxc6 {[%emt 0:00:30]} 20. d5 {[%emt 0:00:30]} Bf6 {[%emt 0:13:30]} 21. dxc6 {[%emt 0:00:00]} Bxc3 {[%emt 0:05:33]} 22. Rfb1 {[%emt 0:08:00]} g5 {[%emt 0:01:45]} 23. Bd6 {[%emt 0:00:30]} Rfc8 {[%emt 0:00:06]} 24. c7 {[%emt 0:00:30]} Ba5 {[%emt 0:01:31]} 25. a4 {[%emt 0:01:30]} Bb4 {[%emt 0:02:17]} 26. Rb8 {[%emt 0:00:00]} f6 {[%emt 0:00:24]} 27. Rxa8 {[%emt 0:00:00]} Rxa8 {[%emt 0:00:03]} 28. Bxc5 {[%emt 0:00:00]} a5 {[%emt 0:00:27]} 29. Bxb4 {[%emt 0:00:00]} 1-0

[Event "CRO Team Cup 2019"]
[Site "Losinj"]
[Date "2019.05.17"]
[Round "4.11"]
[White "Golubovic, Boris"]
[Black "Franic, Milan"]
[Result "1-0"]
[ECO "B52"]
[WhiteElo "2389"]
[BlackElo "2388"]
[Annotator "NA"]
[PlyCount "123"]
[EventDate "2019.05.15"]
[EventType "team-tourn"]
[EventCountry "CRO"]
[SourceTitle "playchess.com"]
[Source "ChessBase"]
[SourceQuality "1"]
[TimeControl "40/5400+30:1800+30"]

1. e4 {[%emt 0:00:30]} c5 {[%emt 0:01:30]} 2. Nf3 {[%emt 0:02:30]} d6 {[%emt 0:00:30]} 3. Bb5+ {[%emt 0:07:30]} Bd7 {[%emt 0:00:30]} 4. Bxd7+ {[%emt 0:01:30]} Qxd7 {[%emt 0:00:30]} 5. O-O {[%emt 0:01:30]} Nc6 {[%emt 0:00:30]} 6. c3 {[%emt 0:05:30]} Nf6 {[%emt 0:01:30]} 7. Re1 {[%emt 0:00:30]} e6 {[%emt 0:00:30]} 8. d4 {[%emt 0:00:30]} cxd4 {[%emt 0:00:00]} 9. cxd4 {[%emt 0:00:30]} d5 {[%emt 0:00:00]} 10. e5 {[%emt 0:00:30]} Ne4 {[%emt 0:00:00]} 11. Nbd2 {[%emt 0:00:00]} Nxd2 {[%emt 0:00:00]} 12. Bxd2 {[%emt 0:00:00]} Be7 {[%emt 0:00:30]} 13. Rc1 {[%emt 0:04:30]} O-O {[%emt 0:01:30]} 14. a3 {[%emt 0:00:00] B52: Sicilian: Moscow Variation with 3...Bd7} (14. Rc3 Rfc8 15. h4 Bd8 16. Rd3 Qc7 17. Ng5 h6 18. Nh3 Ne7 19. Bc3 b5 20. Nf4 Nf5 21. Qg4 Bxh4 22. Nh5 {½-½ (52) Nakamura,H (2769)-Grischuk,A (2766) Paris 2018}) 14... Rfc8 {[%emt 0:01:30]} 15. Rc3 {[%emt 0:03:00]} b5 {[%emt 0:18:30]} 16. h4 {[%emt 0:04:30]} b4 {[%emt 0:09:30]} 17. Rd3 {[%emt 0:12:30]} bxa3 {[%emt 0:03:30]} 18. bxa3 {[%emt 0:00:30]} Bd8 $146 {[%emt 0:13:30]} ({Predecessor:} 18... Rab8 19. Nh2 Qd8 20. Qg4 Na5 21. Bh6 g6 22. h5 {½-½ (51) Krak,T (2268)-Pacher,M (2467) Pardubice 2018}) 19. Ng5 {[%emt 0:15:30]} h6 {[%emt 0:03:30]} 20. Nh3 {[%emt 0:02:30]} Ne7 {[%emt 0:03:30]} 21. Qg4 {[%emt 0:18:59]} Nf5 {[%emt 0:03:30]} 22. Nf4 {[%emt 0:00:30]} Qe7 {[%emt 0:02:30]} 23. Rh3 {[%emt 0:01:14]} Rc4 {[%emt 0:01:30]} 24. Nxd5 {[%emt 0:02:08]} exd5 {[%emt 0:01:30]} 25. Qxf5 {[%emt 0:00:10]} Rxd4 {[%emt 0:03:30]} 26. Bc3 {[%emt 0:03:54]} Rc4 $2 {[%emt 0:11:05]} ({Better is} 26... Re4 $1 $14) 27. e6 {[%emt 0:01:35]} Rac8 {[%emt 0:00:59]} 28. Rf3 {[%emt 0:06:38]} ({Less strong is} 28. Qxd5 Bb6 $16) 28... f6 {[%emt 0:04:32]} 29. Bb4 {[%emt 0:00:28]} Qe8 {[%emt 0:00:13]} 30. e7 {[%emt 0:01:06]} Bb6 {[%emt 0:00:13]} 31. Qxd5+ {[%emt 0:01:18]} Kh8 {[%emt 0:00:05]} 32. g3 {[%emt 0:01:30]} a5 {[%emt 0:01:18]} 33. Bd6 {[%emt 0:01:13]} ({Less strong is} 33. Bxa5 Rc1 $16) 33... Rd4 $2 {[%emt 0:11:42]} (33... Rc2 {was called for.} 34. Qb7 Qb5) 34. Qb7 {[%emt 0:00:58]} Rxd6 {[%emt 0:00:18]} 35. Qxc8 {[%emt 0:00:04]} Qxc8 {[%emt 0:00:00]} 36. e8=Q+ {[%emt 0:00:33]} Qxe8 {[%emt 0:00:00]} 37. Rxe8+ {[%emt 0:00:37]} Kh7 {[%emt 0:00:11]} 38. Re2 {[%emt 0:00:19]} Rd4 {[%emt 0:00:29]} 39. Rb3 {[%emt 0:00:36]} Bc5 {[%emt 0:01:05]} 40. Rc2 {[%emt 0:01:02]} Bd6 {[%emt 0:01:26]} 41. Kg2 {[%emt 0:30:59]} Ra4 {[%emt 0:30:30]} 42. Rcc3 {[%emt 0:00:30]} Kg6 {[%emt 0:00:15]} 43. Rd3 {[%emt 0:00:08]} Bf8 {[%emt 0:00:00]} 44. Rb7 {[%emt 0:00:00]} Rxa3 {[%emt 0:00:00]} 45. Rd8 {[%emt 0:00:00]} Bb4 {[%emt 0:00:00]} 46. Rg8 {[%emt 0:00:00]} Kf5 {[%emt 0:00:00]} 47. Rgxg7 {[%emt 0:00:00]} Ra2 {[%emt 0:00:00]} 48. Rb5+ {[%emt 0:00:00]} Ke6 {[%emt 0:00:00]} 49. Rg6 {[%emt 0:00:00]} Bc3 {[%emt 0:00:00]} 50. g4 {[%emt 0:02:22]} Bd4 {[%emt 0:00:00]} 51. Rf5 {[%emt 0:00:09]} h5 {[%emt 0:00:00]} 52. Rfxf6+ {[%emt 0:00:36]} Bxf6 {[%emt 0:00:00]} 53. g5 {[%emt 0:00:01]} Ra4 {[%emt 0:00:00]} 54. Rxf6+ {[%emt 0:00:18]} Ke7 {[%emt 0:00:00]} 55. f4 {[%emt 0:01:07]} Ra2+ {[%emt 0:00:00]} 56. Kf3 {[%emt 0:00:10]} Ra3+ {[%emt 0:00:00]} 57. Ke4 {[%emt 0:00:52]} Rh3 {[%emt 0:00:00]} 58. Ra6 {[%emt 0:00:39]} Rxh4 {[%emt 0:00:00]} 59. Rxa5 {[%emt 0:00:37]} Rh1 {[%emt 0:08:36]} 60. Kf5 {[%emt 0:00:00]} Rf1 {[%emt 0:00:30]} 61. Ra7+ {[%emt 0:00:00]} Kf8 {[%emt 0:00:30]} 62. Rh7 {[%emt 0:00:00]} 1-0

[Event "CRO Team Cup 2019"]
[Site "Losinj"]
[Date "2019.05.18"]
[Round "5.7"]
[White "Jovanic, Ognjen"]
[Black "Sokac, Marko"]
[Result "1-0"]
[ECO "D36"]
[WhiteElo "2511"]
[BlackElo "2329"]
[Annotator "ChessBase"]
[PlyCount "61"]
[EventDate "2019.05.15"]
[EventType "team-tourn"]
[EventCountry "CRO"]
[SourceTitle "playchess.com"]
[Source "ChessBase"]
[SourceQuality "1"]
[TimeControl "40/5400+30:1800+30"]

1. d4 {[%emt 0:01:30]} d5 {[%emt 0:00:30]} 2. Nf3 {[%emt 0:00:30]} Nf6 {[%emt 0:00:30]} 3. c4 {[%emt 0:01:30]} e6 {[%emt 0:02:30]} 4. Nc3 {[%emt 0:00:30]} Be7 {[%emt 0:01:30]} 5. Bg5 {[%emt 0:01:30]} Nbd7 {[%emt 0:04:30]} 6. cxd5 {[%emt 0:04:30]} exd5 {[%emt 0:03:30]} 7. e3 {[%emt 0:02:30]} O-O {[%emt 0:00:30]} 8. Bd3 {[%emt 0:01:30]} c6 {[%emt 0:02:30]} 9. Qc2 {[%emt 0:03:30]} Re8 {[%emt 0:03:30]} 10. O-O {[%emt 0:03:30]} h6 {[%emt 0:01:30]} 11. Bf4 {[%emt 0:08:30]} Nf8 {[%emt 0:06:30]} 12. Rab1 {[%emt 0:05:30]} Nh5 {[%emt 0:05:30]} 13. Be5 {[%emt 0:01:30]} f6 {[%emt 0:04:30]} 14. Bg3 {[%emt 0:00:30]} Nxg3 {[%emt 0:00:30]} 15. hxg3 {[%emt 0:00:00]} g5 {[%emt 0:01:30]} 16. Bg6 {[%emt 0:04:00]} Kg7 {[%emt 0:00:00]} 17. Bxe8 {[%emt 0:04:30]} Qxe8 {[%emt 0:00:00]} 18. e4 {[%emt 0:00:30]} dxe4 {[%emt 0:02:30]} 19. Qxe4 {[%emt 0:01:30]} Qf7 {[%emt 0:01:30]} 20. d5 {[%emt 0:03:30]} Bd7 {[%emt 0:08:30]} 21. Rfe1 {[%emt 0:05:30]} Bd6 {[%emt 0:00:30]} 22. dxc6 {[%emt 0:07:30]} Bxc6 {[%emt 0:00:30]} 23. Qd3 {[%emt 0:00:30]} Rd8 {[%emt 0:06:30]} 24. Nd4 {[%emt 0:00:30]} Bc7 {[%emt 0:03:30]} 25. Rbd1 {[%emt 0:05:30]} Kh8 {[%emt 0:06:30]} 26. Qe2 {[%emt 0:03:30]} Re8 {[%emt 0:01:30]} 27. Qc2 {[%emt 0:00:30]} Be5 {[%emt 0:02:30]} 28. Nxc6 {[%emt 0:02:30]} bxc6 {[%emt 0:00:30]} 29. Ne4 {[%emt 0:00:30]} Rc8 {[%emt 0:04:30]} 30. Nd6 {[%emt 0:00:30]} Bxd6 {[%emt 0:00:00]} 31. Rxd6 {[%emt 0:00:30]} 1-0